[Event "Elitserien 2019/2020, round 7-9"]
[Site "Elite stadshotellet, Kungsgatan 6, Vaxjo, Sweden"]
[Date "2020.10.16"]
[Round "1.8"]
[White "Akerman, Emil"]
[Black "Hogeman, Joel"]
[Result "0-1"]
[TimeControl "90 minutes for 40 moves + 30 minutes for the rest of the game + 30 seconds per move from move one."]
[WhiteFideId "1715828"]
[BlackFideId "1724851"]
[WhiteElo "1964"]
[BlackElo "2175"]

1. c4 {[%clk 01:30:51]} {[%emt 00:00:09]} e6 {[%clk 01:30:27]} {[%emt
00:00:32]} 2. Nf3 {[%clk 01:30:38]} {[%emt 00:00:43]} Nf6 {[%clk 01:30:01]}
{[%emt 00:00:56]} 3. g3 {[%clk 01:28:38]} {[%emt 00:02:31]} d5 {[%clk
01:30:17]} {[%emt 00:00:13]} 4. cxd5 {[%clk 01:27:25]} {[%emt 00:01:43]} exd5
{[%clk 01:30:28]} {[%emt 00:00:18]} 5. d4 {[%clk 01:27:39]} {[%emt 00:00:17]}
Bd6 {[%clk 01:28:58]} {[%emt 00:02:00]} 6. Nc3 {[%clk 01:27:45]} {[%emt
00:00:25]} c6 {[%clk 01:28:06]} {[%emt 00:01:22]} 7. Qc2 {[%clk 01:27:26]}
{[%emt 00:00:50]} O-O {[%clk 01:26:34]} {[%emt 00:02:01]} 8. Bg2 {[%clk
01:26:50]} {[%emt 00:01:06]} Re8 {[%clk 01:25:02]} {[%emt 00:02:01]} 9. O-O
{[%clk 01:26:40]} {[%emt 00:00:41]} Bg4 {[%clk 01:18:58]} {[%emt 00:06:34]} 10.
Re1 {[%clk 01:22:38]} {[%emt 00:04:32]} Nbd7 {[%clk 01:17:05]} {[%emt
00:02:21]} 11. Bg5 {[%clk 01:14:21]} {[%emt 00:08:49]} h6 {[%clk 01:11:50]}
{[%emt 00:05:44]} 12. Bxf6 {[%clk 01:09:43]} {[%emt 00:05:08]} Nxf6 {[%clk
01:11:34]} {[%emt 00:00:45]} 13. Nd2 {[%clk 01:09:17]} {[%emt 00:00:57]} Bh5
{[%clk 01:05:45]} {[%emt 00:06:20]} 14. e4 {[%clk 00:57:09]} {[%emt 00:12:39]}
dxe4 {[%clk 01:02:56]} {[%emt 00:03:18]} 15. Ndxe4 {[%clk 00:51:57]} {[%emt
00:05:42]} Bf8 {[%clk 00:41:54]} {[%emt 00:21:32]} 16. Nxf6+ {[%clk 00:40:53]}
{[%emt 00:11:35]} Qxf6 {[%clk 00:42:09]} {[%emt 00:00:13]} 17. d5 {[%clk
00:40:33]} {[%emt 00:00:51]} c5 {[%clk 00:36:12]} {[%emt 00:06:27]} 18. h3
{[%clk 00:27:16]} {[%emt 00:13:47]} a6 {[%clk 00:26:46]} {[%emt 00:09:56]} 19.
Ne4 {[%clk 00:23:23]} {[%emt 00:04:24]} Qb6 {[%clk 00:15:54]} {[%emt 00:11:21]}
20. g4 {[%clk 00:17:32]} {[%emt 00:06:22]} Bg6 {[%clk 00:16:13]} {[%emt
00:00:11]} 21. Rad1 {[%clk 00:17:07]} {[%emt 00:00:54]} Qa5 {[%clk 00:13:03]}
{[%emt 00:03:39]} 22. a3 {[%clk 00:16:13]} {[%emt 00:01:25]} b5 {[%clk
00:13:05]} {[%emt 00:00:28]} 23. d6 {[%clk 00:15:43]} {[%emt 00:01:01]} Bxd6
{[%clk 00:10:50]} {[%emt 00:02:45]} 24. Qc1 {[%clk 00:09:35]} {[%emt 00:06:38]}
Bxe4 {[%clk 00:03:58]} {[%emt 00:07:21]} 25. Bxe4 {[%clk 00:09:34]} {[%emt
00:00:31]} Rad8 {[%clk 00:04:24]} {[%emt 00:00:04]} 26. g5 {[%clk 00:08:52]}
{[%emt 00:01:12]} hxg5 {[%clk 00:02:22]} {[%emt 00:02:33]} 27. Qxg5 {[%clk
00:07:59]} {[%emt 00:01:22]} Re6 {[%clk 00:01:11]} {[%emt 00:01:41]} 28. Kf1
{[%clk 00:04:50]} {[%emt 00:03:39]} Rde8 {[%clk 00:01:17]} {[%emt 00:00:23]} 29.
Re3 {[%clk 00:03:58]} {[%emt 00:01:22]} Bf8 {[%clk 00:00:41]} {[%emt 00:01:06]}
30. Ke2 {[%clk 00:02:26]} {[%emt 00:02:03]} Rxe4 {[%clk 00:00:44]} {[%emt
00:00:27]} 31. Rg1 {[%clk 00:01:33]} {[%emt 00:01:23]} Qd8 {[%clk 00:00:49]}
{[%emt 00:00:24]} 32. Qh5 {[%clk 00:01:18]} {[%emt 00:00:46]} Qd4 {[%clk
00:01:07]} {[%emt 00:00:12]} 33. Rgg3 {[%clk 00:01:22]} {[%emt 00:00:26]} Qxb2+
{[%clk 00:01:26]} {[%emt 00:00:10]} 34. Kf1 {[%clk 00:01:50]} {[%emt 00:00:03]}
Qc1+ {[%clk 00:01:41]} {[%emt 00:00:13]} 35. Ke2 {[%clk 00:01:37]} {[%emt
00:00:44]} Qc4+ {[%clk 00:01:52]} {[%emt 00:00:18]} 36. Kf3 {[%clk 00:01:45]}
{[%emt 00:00:22]} Rxe3+ {[%clk 00:02:08]} {[%emt 00:00:14]} 37. fxe3 {[%clk
00:02:04]} {[%emt 00:00:12]} Qf1+ {[%clk 00:02:08]} {[%emt 00:00:30]} 38. Kg4
{[%clk 00:02:21]} {[%emt 00:00:13]} Re4+ {[%clk 00:02:29]} {[%emt 00:00:09]}
0-1

[Event "Elitserien 2019/2020, round 7-9"]
[Site "Elite stadshotellet, Kungsgatan 6, Vaxjo, Sweden"]
[Date "2020.10.17"]
[Round "2.1"]
[White "Lindberg, Bengt"]
[Black "Haitin, Ilja"]
[Result "1/2-1/2"]
[TimeControl "90 minutes for 40 moves + 30 minutes for the rest of the game + 30 seconds per move from move one."]
[WhiteTitle "IM"]
[BlackTitle "FM"]
[WhiteFideId "1700359"]
[BlackFideId "4501764"]
[WhiteElo "2401"]
[BlackElo "2349"]

1. e4 {[%clk 01:30:54]} {[%emt 00:00:05]} d6 {[%clk 01:30:55]} {[%emt
00:00:07]} 2. d4 {[%clk 01:31:01]} {[%emt 00:00:22]} Nf6 {[%clk 01:31:23]}
{[%emt 00:00:04]} 3. Nc3 {[%clk 01:31:06]} {[%emt 00:00:23]} e5 {[%clk
01:31:51]} {[%emt 00:00:02]} 4. Nf3 {[%clk 01:31:12]} {[%emt 00:00:23]} Nbd7
{[%clk 01:32:16]} {[%emt 00:00:06]} 5. Bc4 {[%clk 01:31:06]} {[%emt 00:00:35]}
Be7 {[%clk 01:32:44]} {[%emt 00:00:04]} 6. O-O {[%clk 01:31:13]} {[%emt
00:00:23]} O-O {[%clk 01:33:09]} {[%emt 00:00:05]} 7. Re1 {[%clk 01:31:05]}
{[%emt 00:00:37]} c6 {[%clk 01:33:34]} {[%emt 00:00:06]} 8. a4 {[%clk
01:31:07]} {[%emt 00:00:28]} h6 {[%clk 01:34:00]} {[%emt 00:00:05]} 9. h3
{[%clk 01:28:21]} {[%emt 00:03:14]} Re8 {[%clk 01:34:19]} {[%emt 00:00:11]} 10.
d5 {[%clk 01:04:00]} {[%emt 00:24:52]} Nb6 {[%clk 01:31:06]} {[%emt 00:03:44]}
11. Bf1 {[%clk 01:04:13]} {[%emt 00:00:16]} cxd5 {[%clk 01:29:27]} {[%emt
00:02:10]} 12. exd5 {[%clk 01:04:31]} {[%emt 00:00:11]} Bf5 {[%clk 01:27:52]}
{[%emt 00:02:05]} 13. a5 {[%clk 01:02:08]} {[%emt 00:02:53]} Nbd7 {[%clk
01:25:56]} {[%emt 00:02:26]} 14. a6 {[%clk 01:02:21]} {[%emt 00:00:17]} bxa6
{[%clk 01:20:20]} {[%emt 00:06:07]} 15. Bxa6 {[%clk 01:02:42]} {[%emt
00:00:09]} Nc5 {[%clk 01:18:46]} {[%emt 00:02:03]} 16. Bb5 {[%clk 01:02:56]}
{[%emt 00:00:15]} Bd7 {[%clk 01:17:24]} {[%emt 00:01:53]} 17. Bxd7 {[%clk
00:56:37]} {[%emt 00:06:50]} Ncxd7 {[%clk 01:16:51]} {[%emt 00:01:03]} 18. Nd2
{[%clk 00:49:54]} {[%emt 00:07:11]} Qc8 {[%clk 01:00:57]} {[%emt 00:16:25]} 19.
Nb3 {[%clk 00:47:38]} {[%emt 00:02:45]} Bd8 {[%clk 00:59:08]} {[%emt 00:02:20]}
20. Be3 {[%clk 00:40:36]} {[%emt 00:07:31]} Bb6 {[%clk 00:55:46]} {[%emt
00:03:53]} 21. Na5 {[%clk 00:37:16]} {[%emt 00:03:49]} Bc5 {[%clk 00:38:17]}
{[%emt 00:18:00]} 22. Bxc5 {[%clk 00:29:18]} {[%emt 00:08:28]} Qxc5 {[%clk
00:33:48]} {[%emt 00:04:59]} 23. Nb3 {[%clk 00:25:12]} {[%emt 00:04:35]} Qb6
{[%clk 00:33:06]} {[%emt 00:01:12]} 24. Qd3 {[%clk 00:20:19]} {[%emt 00:05:23]}
Nc5 {[%clk 00:28:19]} {[%emt 00:05:19]} 25. Nxc5 {[%clk 00:20:29]} {[%emt
00:00:19]} Qxc5 {[%clk 00:28:44]} {[%emt 00:00:05]} 26. Ra4 {[%clk 00:18:42]}
{[%emt 00:02:16]} Rac8 {[%clk 00:22:58]} {[%emt 00:06:18]} 27. Rea1 {[%clk
00:17:27]} {[%emt 00:01:43]} e4 {[%clk 00:20:07]} {[%emt 00:03:22]} 28. Nxe4
{[%clk 00:09:03]} {[%emt 00:08:53]} Nxe4 {[%clk 00:20:12]} {[%emt 00:00:26]} 29.
Rxe4 {[%clk 00:09:30]} {[%emt 00:00:02]} Rxe4 {[%clk 00:20:19]} {[%emt
00:00:25]} 30. Qxe4 {[%clk 00:09:54]} {[%emt 00:00:05]} Qxc2 {[%clk 00:20:37]}
{[%emt 00:00:12]} 31. Qxc2 {[%clk 00:05:58]} {[%emt 00:04:25]} Rxc2 {[%clk
00:21:06]} {[%emt 00:00:02]} 32. Rxa7 {[%clk 00:05:24]} {[%emt 00:01:04]} Rc1+
{[%clk 00:21:34]} {[%emt 00:00:02]} 33. Kh2 {[%clk 00:05:47]} {[%emt 00:00:06]}
Rc5 {[%clk 00:22:01]} {[%emt 00:00:03]} 34. Rb7 {[%clk 00:05:25]} {[%emt
00:00:51]} Rxd5 {[%clk 00:22:24]} {[%emt 00:00:09]} 35. Kg3 {[%clk 00:05:39]}
{[%emt 00:00:14]} Rd2 {[%clk 00:15:41]} {[%emt 00:07:14]} 36. Kf3 {[%clk
00:05:43]} {[%emt 00:00:26]} h5 {[%clk 00:15:49]} {[%emt 00:00:22]} 37. h4
{[%clk 00:05:32]} {[%emt 00:00:40]} g6 {[%clk 00:15:48]} {[%emt 00:00:32]} 38.
g3 {[%clk 00:04:57]} {[%emt 00:01:05]} Kg7 {[%clk 00:15:46]} {[%emt 00:00:32]}
39. Ke3 {[%clk 00:02:53]} {[%emt 00:02:32]} Rc2 {[%clk 00:16:08]} {[%emt
00:00:08]} 40. Rb6 {[%clk 00:02:14]} {[%emt 00:01:09]} Kf8 {[%clk 00:15:22]}
{[%emt 00:01:16]} 41. Rxd6 {[%clk 00:30:02]} {[%emt 00:02:43]} 1/2-1/2

[Event "Elitserien 2019/2020, round 7-9"]
[Site "Elite stadshotellet, Kungsgatan 6, Vaxjo, Sweden"]
[Date "2020.10.17"]
[Round "2.2"]
[White "Krupenski, Juri"]
[Black "Alle Wahlin, Ambjorn"]
[Result "1/2-1/2"]
[TimeControl "90 minutes for 40 moves + 30 minutes for the rest of the game + 30 seconds per move from move one."]
[WhiteTitle "IM"]
[WhiteFideId "4501101"]
[BlackFideId "1714805"]
[WhiteElo "2386"]
[BlackElo "2257"]

1. e4 {[%clk 01:30:55]} {[%emt 00:00:04]} c5 {[%clk 01:30:22]} {[%emt
00:00:38]} 2. Nf3 {[%clk 01:31:14]} {[%emt 00:00:12]} Nc6 {[%clk 01:30:40]}
{[%emt 00:00:12]} 3. d4 {[%clk 01:28:59]} {[%emt 00:02:45]} cxd4 {[%clk
01:31:04]} {[%emt 00:00:06]} 4. Nxd4 {[%clk 01:29:25]} {[%emt 00:00:04]} e5
{[%clk 01:31:05]} {[%emt 00:00:29]} 5. Nb5 {[%clk 01:29:23]} {[%emt 00:00:33]}
d6 {[%clk 01:31:04]} {[%emt 00:00:31]} 6. a4 {[%clk 01:28:41]} {[%emt
00:01:12]} Be6 {[%clk 01:28:32]} {[%emt 00:03:02]} 7. N1c3 {[%clk 01:28:49]}
{[%emt 00:00:22]} a6 {[%clk 01:28:08]} {[%emt 00:00:53]} 8. Na3 {[%clk
01:29:12]} {[%emt 00:00:07]} Rc8 {[%clk 01:23:07]} {[%emt 00:05:30]} 9. Nd5
{[%clk 01:07:18]} {[%emt 00:22:24]} Nf6 {[%clk 01:08:57]} {[%emt 00:14:41]} 10.
Bg5 {[%clk 01:02:24]} {[%emt 00:05:24]} Qa5+ {[%clk 00:50:13]} {[%emt
00:19:13]} 11. Bd2 {[%clk 01:02:19]} {[%emt 00:00:36]} Qd8 {[%clk 00:50:35]}
{[%emt 00:00:07]} 12. Nxf6+ {[%clk 00:56:46]} {[%emt 00:06:04]} Qxf6 {[%clk
00:49:57]} {[%emt 00:01:08]} 13. Bd3 {[%clk 00:53:26]} {[%emt 00:03:50]} d5
{[%clk 00:40:35]} {[%emt 00:09:52]} 14. O-O {[%clk 00:51:35]} {[%emt 00:02:21]}
Bc5 {[%clk 00:38:42]} {[%emt 00:02:23]} 15. c3 {[%clk 00:31:59]} {[%emt
00:20:06]} d4 {[%clk 00:24:49]} {[%emt 00:14:23]} 16. Nc2 {[%clk 00:28:39]}
{[%emt 00:03:50]} dxc3 {[%clk 00:22:39]} {[%emt 00:02:40]} 17. bxc3 {[%clk
00:27:51]} {[%emt 00:01:18]} O-O {[%clk 00:22:46]} {[%emt 00:00:23]} 18. Rb1
{[%clk 00:27:29]} {[%emt 00:00:52]} Rfd8 {[%clk 00:22:55]} {[%emt 00:00:20]} 19.
Qe2 {[%clk 00:27:06]} {[%emt 00:00:54]} Qe7 {[%clk 00:23:18]} {[%emt 00:00:07]}
20. Be3 {[%clk 00:23:24]} {[%emt 00:04:12]} Rc7 {[%clk 00:23:22]} {[%emt
00:00:26]} 21. Bc4 {[%clk 00:21:20]} {[%emt 00:02:35]} Na5 {[%clk 00:20:43]}
{[%emt 00:03:09]} 22. Bxe6 {[%clk 00:19:55]} {[%emt 00:01:56]} fxe6 {[%clk
00:20:06]} {[%emt 00:01:06]} 23. Qh5 {[%clk 00:19:27]} {[%emt 00:00:59]} Nc4
{[%clk 00:15:51]} {[%emt 00:04:44]} 24. Bg5 {[%clk 00:10:29]} {[%emt 00:09:28]}
Qe8 {[%clk 00:15:36]} {[%emt 00:00:45]} 25. Qxe8+ {[%clk 00:07:23]} {[%emt
00:03:36]} Rxe8 {[%clk 00:15:59]} {[%emt 00:00:07]} 26. Rfe1 {[%clk 00:04:22]}
{[%emt 00:03:32]} h6 {[%clk 00:09:53]} {[%emt 00:06:35]} 27. Bh4 {[%clk
00:04:44]} {[%emt 00:00:08]} g5 {[%clk 00:09:58]} {[%emt 00:00:25]} 28. Bg3
{[%clk 00:05:10]} {[%emt 00:00:05]} Rd8 {[%clk 00:10:17]} {[%emt 00:00:10]} 29.
Red1 {[%clk 00:01:12]} {[%emt 00:04:29]} Rcd7 {[%clk 00:10:24]} {[%emt
00:00:23]} 30. Rxd7 {[%clk 00:01:31]} {[%emt 00:00:11]} Rxd7 {[%clk 00:10:48]}
{[%emt 00:00:05]} 31. Ne1 {[%clk 00:01:46]} {[%emt 00:00:16]} Nd2 {[%clk
00:09:23]} {[%emt 00:01:54]} 32. Rb2 {[%clk 00:01:21]} {[%emt 00:00:54]} Nc4
{[%clk 00:06:55]} {[%emt 00:02:59]} 33. Rb1 {[%clk 00:01:34]} {[%emt 00:00:18]}
Nd2 {[%clk 00:04:55]} {[%emt 00:02:29]} 34. Rb2 {[%clk 00:01:58]} {[%emt
00:00:05]} Nc4 {[%clk 00:05:18]} {[%emt 00:00:08]} 1/2-1/2

[Event "Elitserien 2019/2020, round 7-9"]
[Site "Elite stadshotellet, Kungsgatan 6, Vaxjo, Sweden"]
[Date "2020.10.17"]
[Round "2.3"]
[White "Solodovnichenko, Yuri"]
[Black "Larsson, Victor"]
[Result "1/2-1/2"]
[TimeControl "90 minutes for 40 moves + 30 minutes for the rest of the game + 30 seconds per move from move one."]
[WhiteTitle "GM"]
[WhiteFideId "14104369"]
[BlackFideId "1707019"]
[WhiteElo "2574"]
[BlackElo "2186"]

1. e4 {[%clk 01:30:56]} {[%emt 00:00:03]} c5 {[%clk 01:18:58]} {[%emt
00:12:03]} 2. Nf3 {[%clk 01:31:08]} {[%emt 00:00:17]} Nc6 {[%clk 01:19:25]}
{[%emt 00:00:04]} 3. Bb5 {[%clk 01:31:16]} {[%emt 00:00:21]} g6 {[%clk
01:19:51]} {[%emt 00:00:05]} 4. Bxc6 {[%clk 01:31:32]} {[%emt 00:00:13]} dxc6
{[%clk 01:20:16]} {[%emt 00:00:06]} 5. d3 {[%clk 01:31:55]} {[%emt 00:00:06]}
Bg7 {[%clk 01:20:43]} {[%emt 00:00:04]} 6. h3 {[%clk 01:32:21]} {[%emt
00:00:04]} e5 {[%clk 01:18:22]} {[%emt 00:02:51]} 7. Be3 {[%clk 01:31:38]}
{[%emt 00:01:12]} Qe7 {[%clk 01:18:44]} {[%emt 00:00:10]} 8. Nc3 {[%clk
01:31:17]} {[%emt 00:00:50]} Nf6 {[%clk 01:19:04]} {[%emt 00:00:10]} 9. Qd2
{[%clk 01:31:32]} {[%emt 00:00:14]} h6 {[%clk 01:13:17]} {[%emt 00:06:18]} 10.
O-O {[%clk 01:31:43]} {[%emt 00:00:19]} Nd7 {[%clk 01:13:45]} {[%emt 00:00:03]}
11. Nh2 {[%clk 01:32:03]} {[%emt 00:00:09]} Nf8 {[%clk 01:13:50]} {[%emt
00:00:26]} 12. f4 {[%clk 01:32:27]} {[%emt 00:00:05]} exf4 {[%clk 01:14:15]}
{[%emt 00:00:06]} 13. Bxf4 {[%clk 01:32:52]} {[%emt 00:00:04]} Ne6 {[%clk
01:14:40]} {[%emt 00:00:05]} 14. Bg3 {[%clk 01:33:17]} {[%emt 00:00:05]} Nd4
{[%clk 01:13:56]} {[%emt 00:01:14]} 15. Rae1 {[%clk 01:33:33]} {[%emt
00:00:13]} O-O {[%clk 01:14:18]} 16. Nd1 {[%clk 01:29:53]} {[%emt 00:04:18]}
Bd7 {[%clk 01:09:30]} 17. Ne3 {[%clk 01:24:58]} {[%emt 00:10:42]} Qg5 {[%clk
01:08:19]} 18. Bf4 {[%clk 01:24:28]} {[%emt 00:02:41]} Qh5 {[%clk 01:07:10]} 19.
Neg4 {[%clk 01:20:06]} {[%emt 00:12:07]} Bxg4 {[%clk 00:46:57]} 20. hxg4 {[%clk
01:20:06]} {[%emt 00:15:38]} Qh4 {[%clk 00:47:21]} 21. Re3 {[%emt 00:08:15]}
Qe7 {[%clk 00:43:34]} {[%emt 00:02:31]} 22. Rh3 {[%clk 01:13:08]} {[%emt
00:01:35]} g5 {[%clk 00:43:47]} {[%emt 00:00:17]} 23. Be3 {[%clk 01:13:22]}
{[%emt 00:00:15]} Qd7 {[%emt 00:09:00]} 24. c3 {[%clk 01:07:13]} {[%emt
00:00:20]} Ne6 {[%clk 00:42:01]} {[%emt 00:00:07]} 25. Rf5 {[%emt 00:02:57]} b6
{[%emt 00:03:02]} 26. Nf1 {[%clk 01:05:00]} {[%emt 00:00:11]} Rad8 {[%emt
00:12:19]} 27. Qf2 Qc7 {[%clk 00:19:04]} {[%emt 00:09:39]} 28. Qc2 {[%clk
00:54:08]} {[%emt 00:11:23]} Rd7 {[%clk 00:16:57]} {[%emt 00:02:38]} 29. Bf2
{[%clk 00:50:45]} {[%emt 00:03:51]} Nf4 {[%clk 00:16:41]} {[%emt 00:00:47]} 30.
Rf3 {[%clk 00:47:40]} {[%emt 00:03:35]} Qd8 {[%emt 00:05:39]} 31. d4 {[%clk
00:39:19]} {[%emt 00:03:57]} cxd4 {[%clk 00:16:08]} {[%emt 00:00:48]} 32. cxd4
{[%clk 00:39:37]} {[%emt 00:00:11]} Bxd4 {[%clk 00:15:39]} {[%emt 00:01:00]} 33.
Bxd4 {[%clk 00:39:39]} {[%emt 00:00:29]} Rxd4 {[%clk 00:16:08]} 34. Qxc6 {[%clk
00:39:41]} {[%emt 00:00:28]} Rd6 {[%clk 00:13:41]} {[%emt 00:02:57]} 35. Qc4
{[%emt 00:04:28]} Rd4 36. Qc6 {[%emt 00:00:06]} Rd6 37. Qc4 Rd1 {[%emt
00:00:22]} 1/2-1/2

[Event "Elitserien 2019/2020, round 7-9"]
[Site "Elite stadshotellet, Kungsgatan 6, Vaxjo, Sweden"]
[Date "2020.10.17"]
[Round "2.4"]
[White "Akerman, Axel"]
[Black "Golubka, Petro"]
[Result "1/2-1/2"]
[TimeControl "90 minutes for 40 moves + 30 minutes for the rest of the game + 30 seconds per move from move one."]
[BlackTitle "GM"]
[WhiteFideId "1715810"]
[BlackFideId "14114224"]
[WhiteElo "2199"]
[BlackElo "2490"]

1. e4 {[%clk 01:30:57]} {[%emt 00:00:02]} b6 {[%clk 01:28:39]} {[%emt
00:02:22]} 2. Nc3 {[%clk 01:31:11]} {[%emt 00:00:15]} Bb7 {[%clk 01:29:02]}
{[%emt 00:00:06]} 3. f4 {[%clk 01:28:51]} {[%emt 00:02:51]} e6 {[%clk
01:28:50]} {[%emt 00:00:42]} 4. Nf3 {[%clk 01:22:36]} {[%emt 00:06:45]} Bb4
{[%clk 01:27:25]} {[%emt 00:01:52]} 5. Bd3 {[%clk 01:22:26]} {[%emt 00:00:43]}
Nh6 {[%clk 01:26:33]} {[%emt 00:01:22]} 6. a3 {[%clk 01:22:08]} {[%emt
00:00:48]} Be7 {[%clk 01:26:26]} {[%emt 00:00:36]} 7. b4 {[%clk 01:16:09]}
{[%emt 00:06:30]} O-O {[%clk 01:24:48]} {[%emt 00:02:08]} 8. Be2 {[%clk
01:04:37]} {[%emt 00:12:02]} c5 {[%clk 01:16:53]} {[%emt 00:08:25]} 9. bxc5
{[%clk 01:01:55]} {[%emt 00:03:12]} bxc5 {[%clk 01:12:37]} {[%emt 00:04:44]} 10.
Rb1 {[%clk 01:01:49]} {[%emt 00:00:37]} Bc6 {[%clk 01:12:38]} {[%emt 00:00:27]}
11. O-O {[%clk 00:58:21]} {[%emt 00:04:00]} f5 {[%clk 01:11:52]} {[%emt
00:01:16]} 12. d3 {[%clk 00:56:24]} {[%emt 00:02:28]} Qc8 {[%clk 01:09:48]}
{[%emt 00:02:34]} 13. Qe1 {[%clk 00:52:14]} {[%emt 00:04:40]} Bf6 {[%clk
01:01:07]} {[%emt 00:09:11]} 14. Ne5 {[%clk 00:41:36]} {[%emt 00:11:08]} d6
{[%clk 01:00:04]} {[%emt 00:01:32]} 15. Nc4 {[%clk 00:40:50]} {[%emt 00:01:17]}
Rd8 {[%clk 00:57:18]} {[%emt 00:03:15]} 16. e5 {[%clk 00:34:57]} {[%emt
00:06:24]} dxe5 {[%clk 00:56:06]} {[%emt 00:01:42]} 17. fxe5 {[%clk 00:35:11]}
{[%emt 00:00:17]} Be7 {[%clk 00:56:28]} {[%emt 00:00:07]} 18. Bxh6 {[%clk
00:25:29]} {[%emt 00:10:12]} gxh6 {[%clk 00:56:53]} {[%emt 00:00:06]} 19. Bf3
{[%clk 00:21:29]} {[%emt 00:04:29]} Nd7 {[%clk 00:45:43]} {[%emt 00:11:39]} 20.
Qg3+ {[%clk 00:15:55]} {[%emt 00:06:05]} Kh8 {[%clk 00:45:08]} {[%emt
00:01:05]} 21. Qh3 {[%clk 00:15:34]} {[%emt 00:00:52]} Rg8 {[%clk 00:39:32]}
{[%emt 00:06:06]} 22. Qxh6 {[%clk 00:14:07]} {[%emt 00:01:57]} Rg6 {[%clk
00:39:35]} {[%emt 00:00:28]} 23. Qh3 {[%clk 00:14:35]} {[%emt 00:00:02]} Qa6
{[%clk 00:37:23]} {[%emt 00:02:41]} 24. Ne2 {[%clk 00:12:47]} {[%emt 00:02:18]}
Bg5 {[%clk 00:37:06]} {[%emt 00:00:47]} 25. g3 {[%clk 00:11:10]} {[%emt
00:02:07]} Bxf3 {[%clk 00:36:26]} {[%emt 00:01:10]} 26. Rxf3 {[%clk 00:11:37]}
{[%emt 00:00:02]} Nb6 {[%clk 00:36:19]} {[%emt 00:00:36]} 27. Nd6 {[%clk
00:09:00]} {[%emt 00:03:09]} 1/2-1/2

[Event "Elitserien 2019/2020, round 7-9"]
[Site "Elite stadshotellet, Kungsgatan 6, Vaxjo, Sweden"]
[Date "2020.10.17"]
[Round "2.5"]
[White "Rydstrom, Tom"]
[Black "Linusson, Pelle"]
[Result "1-0"]
[TimeControl "90 minutes for 40 moves + 30 minutes for the rest of the game + 30 seconds per move from move one."]
[WhiteTitle "FM"]
[WhiteFideId "1714830"]
[BlackFideId "1709062"]
[WhiteElo "2248"]
[BlackElo "2249"]

1. e4 {[%clk 01:30:40]} {[%emt 00:00:18]} e5 {[%clk 01:18:44]} {[%emt
00:12:18]} 2. Nf3 {[%clk 01:30:57]} {[%emt 00:00:12]} Nc6 {[%clk 01:19:10]}
{[%emt 00:00:05]} 3. Bb5 {[%clk 01:30:52]} {[%emt 00:00:35]} a6 {[%clk
01:19:33]} {[%emt 00:00:08]} 4. Ba4 {[%clk 01:31:19]} {[%emt 00:00:03]} Nf6
{[%clk 01:19:56]} {[%emt 00:00:06]} 5. d3 {[%clk 01:31:31]} {[%emt 00:00:18]}
d6 {[%clk 01:19:26]} {[%emt 00:01:00]} 6. c4 {[%clk 01:29:12]} {[%emt
00:02:49]} Be7 {[%clk 01:17:14]} {[%emt 00:02:42]} 7. Nc3 {[%clk 01:29:26]}
{[%emt 00:00:16]} O-O {[%clk 01:17:38]} {[%emt 00:00:06]} 8. h3 {[%clk
01:26:47]} {[%emt 00:03:09]} h6 {[%clk 01:12:48]} {[%emt 00:05:21]} 9. Be3
{[%clk 01:25:54]} {[%emt 00:01:23]} Nh7 {[%clk 01:12:17]} {[%emt 00:01:01]} 10.
c5 {[%clk 01:22:35]} {[%emt 00:03:49]} Ng5 {[%clk 01:01:12]} {[%emt 00:11:36]}
11. cxd6 {[%clk 00:59:21]} {[%emt 00:23:44]} cxd6 {[%clk 00:48:39]} {[%emt
00:13:03]} 12. Bb3 {[%clk 00:52:22]} {[%emt 00:07:29]} Nxf3+ {[%clk 00:45:40]}
{[%emt 00:03:29]} 13. Qxf3 {[%clk 00:52:39]} {[%emt 00:00:13]} Be6 {[%clk
00:38:36]} {[%emt 00:07:34]} 14. O-O {[%clk 00:50:08]} {[%emt 00:03:01]} Bxb3
{[%clk 00:29:20]} {[%emt 00:09:47]} 15. axb3 {[%clk 00:50:35]} {[%emt
00:00:02]} Bg5 {[%clk 00:29:43]} {[%emt 00:00:07]} 16. Qg4 {[%clk 00:36:36]}
{[%emt 00:14:29]} Nb4 {[%clk 00:21:23]} {[%emt 00:08:50]} 17. Rad1 {[%clk
00:33:51]} {[%emt 00:03:16]} Rc8 {[%clk 00:19:49]} {[%emt 00:02:04]} 18. d4
{[%clk 00:25:39]} {[%emt 00:08:40]} Bxe3 {[%clk 00:18:12]} {[%emt 00:02:08]} 19.
fxe3 {[%clk 00:23:19]} {[%emt 00:02:51]} Qb6 {[%clk 00:16:44]} {[%emt
00:01:58]} 20. Rf3 {[%clk 00:22:15]} {[%emt 00:01:34]} Rce8 {[%clk 00:16:47]}
{[%emt 00:00:28]} 21. Rg3 {[%clk 00:19:23]} {[%emt 00:03:22]} g6 {[%clk
00:16:44]} {[%emt 00:00:33]} 22. Rf1 {[%clk 00:15:27]} {[%emt 00:04:26]} d5
{[%clk 00:12:21]} {[%emt 00:04:53]} 23. dxe5 {[%clk 00:14:32]} {[%emt
00:01:25]} Rxe5 {[%clk 00:11:57]} {[%emt 00:00:53]} 24. Qf4 {[%clk 00:13:27]}
{[%emt 00:01:35]} Rg5 {[%clk 00:06:49]} {[%emt 00:05:39]} 25. Rxg5 {[%clk
00:12:40]} {[%emt 00:01:17]} hxg5 {[%clk 00:07:12]} {[%emt 00:00:06]} 26. Qxg5
{[%clk 00:13:08]} {[%emt 00:00:02]} Re8 {[%clk 00:04:37]} {[%emt 00:03:05]} 27.
Rf6 {[%clk 00:09:54]} {[%emt 00:03:44]} Qc7 {[%clk 00:01:46]} {[%emt 00:03:20]}
28. exd5 {[%clk 00:08:48]} {[%emt 00:01:36]} Qc5 {[%clk 00:02:07]} {[%emt
00:00:10]} 29. Rf3 {[%clk 00:07:41]} {[%emt 00:01:37]} Nc2 {[%clk 00:02:25]}
{[%emt 00:00:13]} 30. Qf4 {[%clk 00:07:07]} {[%emt 00:01:02]} f5 {[%clk
00:00:46]} {[%emt 00:02:11]} 31. Qh6 {[%clk 00:07:11]} {[%emt 00:00:25]} Qd6
{[%clk 00:00:35]} {[%emt 00:00:41]} 32. Ne2 {[%clk 00:05:56]} {[%emt 00:01:46]}
Qb6 {[%clk 00:00:40]} {[%emt 00:00:26]} 33. Rg3 {[%clk 00:05:47]} {[%emt
00:00:38]} Kf7 {[%clk 00:00:44]} {[%emt 00:00:27]} 34. Qh7+ {[%clk 00:06:02]}
{[%emt 00:00:14]} Kf8 {[%clk 00:01:09]} {[%emt 00:00:06]} 35. Rxg6 {[%clk
00:05:36]} {[%emt 00:00:56]} Qxe3+ {[%clk 00:01:26]} {[%emt 00:00:13]} 36. Kh1
{[%clk 00:06:03]} {[%emt 00:00:02]} 1-0